Cogmind - Beta 13 @@@ ROGUE MODE // 2024.04.06 @ 16:01:03 Player: Toa of Guts Result: Destroyed by D-53 Grenadier with Mini Grenade Launcher Performance ------------- Evolutions (1) 500 Regions Visited (3) 600 Robots Destroyed (17) 85 Value Destroyed (329) 329 Prototype IDs (0) 0 Alien Tech Used (0) 0 Bonus (0) 0 TOTAL SCORE: 1514 Bonus ------- None Cogmind --------- Core Integrity 0/400 Matter 173/300 Energy 68/100 System Corruption 0% Temperature Cool (0) Movement Core (150) Ox2 Location -9/Mines Parts ------- > --- POWER (1) -------- (None) > --- PROPULSION (2) --- (None) > --- UTILITY (3) ------ Small Storage Unit > --- WEAPON (3) ------- Light Assault Rifle Light Assault Rifle Mini Grenade Launcher > --- INVENTORY (8) ---- Light Ion Engine Heat Sink Structural Scanner Structural Scanner Beam Rifle Light Assault Rifle Peak State ------------ > --- POWER ------------ Improved Ion Engine > --- PROPULSION ------- Wheel Wheel > --- UTILITY ---------- Small Storage Unit Structural Scanner Hardened Light Armor Plating > --- WEAPON ----------- Medium Laser Beam Rifle Light Assault Rifle > --- INVENTORY -------- Light Ion Engine Heat Sink Structural Scanner Structural Scanner EM Shotgun Light Assault Rifle Light Assault Rifle Mini Grenade Launcher [Rating: 13] Favorites ----------- Power Light Ion Engine Engine Light Ion Engine Propulsion Wheel Leg Aluminum Leg Wheel Wheel Utility Small Storage Unit Device Structural Scanner Storage Small Storage Unit Protection Hardened Light Armor Plating Weapon Light Assault Rifle Energy Gun Medium Laser Ballistic Gun Light Assault Rifle Launcher Mini Grenade Launcher Build | -11 -10 -9 -9 ------- Run | Yrd Mat Mat Min Slots Evolved 2 | . . 2 . Power . | . . . . Propulsion . | . . . . Utility 1 | . . 1 . Weapon 1 | . . 1 . Parts Attached 32 | 6 5 18 3 Power 6 | 1 1 4 . Engine 6 | 1 1 4 . Core . | . . . . Reactor . | . . . . Propulsion 8 | 2 1 5 . Treads . | . . . . Leg 3 | . . 3 . Wheel 5 | 2 1 2 . Hover . | . . . . Flight . | . . . . Utility 5 | 1 1 3 . Device 2 | . 1 1 . Storage 1 | 1 . . . Processor . | . . . . Hackware . | . . . . Protection 2 | . . 2 . Artifact . | . . . . Weapon 13 | 2 2 6 3 Energy Gun 6 | 1 2 3 . Energy Cannon . | . . . . Ballistic Gun 6 | 1 . 3 2 Ballistic Cannon . | . . . . Launcher 1 | . . . 1 Special Weapon . | . . . . Impact Weapon . | . . . . Slashing Weapon . | . . . . Piercing Weapon . | . . . . Special Melee Weapon . | . . . . Unidentified Prototypes . | . . . . Parts Lost 13 | . . 6 7 Power 2 | . . 1 1 Propulsion 4 | . . 2 2 Utility 2 | . . . 2 Weapon 5 | . . 3 2 Highest Loss Streak 7 | . . 5 7 To Critical Strikes 1 | . . 1 . Average Slot Usage (%) 91 | . 95 90 88 Engine 11 | . 14 10 11 Leg 4 | . . 6 . Wheel 16 | . 28 13 15 Device 10 | . 9 11 9 Storage 11 | . 14 11 11 Protection 5 | . . 7 9 Energy Gun 20 | . 26 18 20 Ballistic Gun 8 | . 1 11 4 Naked Turns . | . . . . Heaviest Build 24 | 10 12 24 24 Greatest Support 26 | 26 26 26 20 Greatest Overweight (x) 4 | . . 4 2 Average Overweight (x) . | . . . 1 Largest Inventory Capacity 8 | 8 8 8 8 Average Capacity 7 | 7 8 8 8 Most Carried 8 | 6 8 8 8 Average Carried 6 | 3 7 6 7 Final Capacity 8 | 8 8 8 8 Final Carried 8 | 6 8 8 6 Class Distribution -------------------- 49% | Mutant 26% | Scavenger-Tank 12% | Tank 10% | Skirmisher Dominant Class ---------------- Mutant | -10/Materials Scavenger-Tank | -9/Materials Tank | -9/Mines Resources | -11 -10 -9 -9 ----------- Run | Yrd Mat Mat Min Matter Collected 519 | 212 98 209 . Remotely . | . . . . Salvage Created 511 | . 114 377 20 Parts 36 | . 8 28 . Haulers Intercepted 1 | . 1 . . Recyclers Shooed 3 | . 1 2 . Parts Field Recycled . | . . . . Retrieved Matter . | . . . . Parts Self-Destructed . | . . . . Prevented . | . . . . Kills | -11 -10 -9 -9 ------- Run | Yrd Mat Mat Min Combat Hostiles Destroyed 25 | . 3 11 11 Guns 13 | . 3 10 . AOE 11 | . . . 11 Classes Destroyed 6 | . 3 2 1 Builder 1 | . 1 . . Tunneler 1 | . . 1 . Hauler 1 | . 1 . . Swarmer 9 | . 3 6 . Sentry 5 | . . 5 . Assembled 11 | . . . 11 Best Kill Streak 11 | . 4 2 11 Combat Bots Only 11 | . 3 2 11 Max Kills in Single Turn 3 | . 2 1 3 Gunslinging 1 | . 1 . . Exploded 3 | . . . 3 Melee . | . . . . Uniques/NPCs Destroyed . | . . . . Combat | -11 -10 -9 -9 -------- Run | Yrd Mat Mat Min Hostile Shots Fired 131 | . 23 87 21 Missed 31 | . 5 22 4 Damage Taken 1494 | . 148 731 615 Core 429 | . 24 207 198 Absorbed by Shields . | . . . . Core Remaining (%) 95 | 100 90 . . Volleys Fired 73 | . 15 44 14 Largest 3 | . 2 3 2 Hottest 126 | . 90 126 40 Shots Fired 160 | . 30 115 15 Gun 147 | . 30 115 2 Cannon . | . . . . Launcher 13 | . . . 13 Special . | . . . . Kinetic 56 | . . 54 2 Thermal 91 | . 30 61 . Explosive 13 | . . . 13 Electromagnetic . | . . . . Robot Hit Streak 16 | . 12 14 16 Robot Miss Streak 4 | . 3 4 2 Penetration Max . | . . . . Secondary Targets 3 | . 2 1 . Max Gunslinging Chain 1 | . 1 1 . Shots Hit Robots 107 | . 21 77 9 Core Hits 61 | . 7 20 34 Critical Kills . | . . . . Critical Parts Destroyed . | . . . . Critical Strikes 2 | . 1 1 . Burn 2 | . 1 1 . Melee Attacks . | . . . . Impact . | . . . . Slashing . | . . . . Piercing . | . . . . Sneak Attacks . | . . . . Combat Hostiles . | . . . . Follow-up Attacks . | . . . . Damage Inflicted 2012 | . 252 835 925 Guns 1100 | . 252 835 13 Cannons . | . . . . Explosions 912 | . . . 912 Melee . | . . . . Ramming . | . . . . Kinetic 287 | . . 274 13 Thermal 813 | . 252 561 . Explosive 912 | . . . 912 Electromagnetic . | . . . . Impact . | . . . . Slashing . | . . . . Piercing . | . . . . Highest Corruption . | . . . . Average Corruption . | . . . . Corruption Purged . | . . . . Corruption Blocked . | . . . . Overload Shots . | . . . . Overflow Damage 2 | . . . 2 Projectiles . | . . . . Explosions 2 | . . . 2 Melee . | . . . . Knockbacks . | . . . . Impact . | . . . . Kinetic . | . . . . Secondary . | . . . . Self-Inflicted Damage 50 | . . . 50 Shots 2 | . . . 2 Rammed . | . . . . Targets Rammed . | . . . . Kicked . | . . . . Crushed . | . . . . Highest Temperature 423 | . 280 423 . Average Temperature 130 | . 113 135 . Received Heat Transfer 171 | . . 171 . Effects 2 | . . 2 . Shutdowns 1 | . . 1 . Energy Bleed 1 | . . 1 . Siege Activations . | . . . . Robots Corrupted . | . . . . Combat Hostiles . | . . . . Parts Fried . | . . . . Impact Corruptions . | . . . . Robots Melted 1 | . . 1 . Combat Hostiles 1 | . . 1 . Parts Melted 5 | . 1 4 . Heat Transferred 2313 | . 744 1569 . Parts Sabotaged . | . . . . Parts Stolen . | . . . . Parts Stripped . | . . . . Power Chain Reactions . | . . . . Alert | -11 -10 -9 -9 ------- Run | Yrd Mat Mat Min Peak Influence 298 | . 142 298 126 Initial 92 | . . 59 92 Average 116 | . 53 151 101 Maximum Alert Level 1 | . . 1 . Low Security (%) 85 | 100 100 77 100 Level 1 14 | . . 22 . Level 2 . | . . . . Level 3 . | . . . . Level 4 . | . . . . Level 5 . | . . . . High Security . | . . . . Max Security . | . . . . Squads Dispatched . | . . . . Investigation . | . . . . Extermination . | . . . . Reinforcement . | . . . . Assault . | . . . . Garrison . | . . . . Intercept . | . . . . Searches Triggered . | . . . . Construction Impeded . | . . . . Haulers Reinforced . | . . . . Active Scanning Responses . | . . . . Cargo Convoy Interrupts . | . . . . Stealth | -11 -10 -9 -9 --------- Run | Yrd Mat Mat Min Distress Signals 2 | . 1 1 . Communications Jammed . | . . . . Distress Signals . | . . . . Times Spotted 34 | . 5 18 11 Peak Tracking Total 11 | . 4 6 11 Tactical Retreats 4 | . 1 3 . Traps | -11 -10 -9 -9 ------- Run | Yrd Mat Mat Min Traps Triggered 1 | . . 1 . Indirectly . | . . . . Trap Hack Attempts . | . . . . Triggered . | . . . . Disarmed . | . . . . Reprogrammed . | . . . . Reused . | . . . . Traps Extracted . | . . . . Installed . | . . . . Triggered . | . . . . Machines | -11 -10 -9 -9 ---------- Run | Yrd Mat Mat Min Machines Disabled . | . . . . Max in Single Turn . | . . . . Machines Repaired . | . . . . Machines Dismantled . | . . . . Machines Sabotaged . | . . . . Overloaded Fab Kills . | . . . . Hacking | -11 -10 -9 -9 --------- Run | Yrd Mat Mat Min Machines Accessed 6 | . 2 4 . Terminals 6 | . 2 4 . Fabricators . | . . . . Repair Stations . | . . . . Recycling Units . | . . . . Scanalyzers . | . . . . Garrison Access . | . . . . Total Hacks 8 | . 2 6 . Successful 6 | . 2 4 . Failed 2 | . . 2 . Catastrophic . | . . . . Database Lockouts . | . . . . Manual 7 | . 2 5 . Terminals 8 | . 2 6 . Fabricators . | . . . . Repair Stations . | . . . . Recycling Units . | . . . . Scanalyzers . | . . . . Garrison Access . | . . . . Terminal Hacks 1 | . . 1 . Locate Traps 1 | . . 1 . Fabricator Hacks . | . . . . Repair Station Hacks . | . . . . Recycling Unit Hacks . | . . . . Scanalyzer . | . . . . Garrison Access Hacks . | . . . . Unauthorized Hacks 5 | . 2 3 . Terminals 5 | . 2 3 . Track 5 | . 2 3 . Fabricators . | . . . . Repair Stations . | . . . . Recycling Units . | . . . . Scanalyzers . | . . . . Garrison Access . | . . . . Data Cores Recovered . | . . . . Used . | . . . . Hacking Detections 1 | . . 1 . Full Trace Events . | . . . . Feedback Events . | . . . . Feedback Blocked . | . . . . Robot Schematics Acquired . | . . . . Robots Built . | . . . . Authchips . | . . . . Time . | . . . . Total Robot Build Rating . | . . . . Part Schematics Acquired . | . . . . Parts Built . | . . . . Authchips . | . . . . Time . | . . . . Total Part Build Rating . | . . . . Parts Repaired . | . . . . Time . | . . . . Parts Recycled . | . . . . Recycled Matter . | . . . . Retrieved Matter . | . . . . Retrieved Components . | . . . . Parts Scanalyzed . | . . . . Part Schematics Acquired . | . . . . Parts Damaged . | . . . . Bothacking | -11 -10 -9 -9 ------------ Run | Yrd Mat Mat Min Used RIF Installer . | . . . . Robots Hacked . | . . . . Non-combat . | . . . . Combat . | . . . . Robot Hacks Applied . | . . . . Relay Couplers Released . | . . . . Fabnet Peak Effective % . | . . . . Robots Rewired . | . . . . Allies Hacked . | . . . . Hacks Repelled . | . . . . Allies | -11 -10 -9 -9 -------- Run | Yrd Mat Mat Min Total Allies . | . . . . Largest Group . | . . . . Highest-Rated Group . | . . . . Highest-Rated Ally . | . . . . Total Orders . | . . . . Ally Attacks . | . . . . Total Damage . | . . . . Kills . | . . . . Allies Corrupted . | . . . . Allies Melted . | . . . . Intel | -11 -10 -9 -9 ------- Run | Yrd Mat Mat Min Robot Analysis Total . | . . . . Derelict Logs Recovered . | . . . . Drone Launches . | . . . . Drone Recoveries . | . . . . Exploration | -11 -10 -9 -9 ------------- Run | Yrd Mat Mat Min Turns Passed 973 | 77 195 633 68 Spaces Moved 641 | 56 151 398 36 Core 18 | 4 . 14 . Treads . | . . . . Legs 77 | . . 77 . Wheels 546 | 52 151 307 36 Hover . | . . . . Flight . | . . . . Fastest Speed 50 | 50 90 90 95 Average Speed 99 | 88 90 104 99 Slowest Speed 250 | 100 90 250 110 Overloaded Moves . | . . . . Propulsion Burnouts . | . . . . Robots Hopped . | . . . . Cave-ins Triggered . | . . . . Exploration Rate (%) 21 | 3 32 40 12 Regions Visited 3 Branch Regions 1 Pre-discovered Areas . | . . . . Known Exits Taken . | . . . . Unknown Exits Taken 3 | 1 1 1 . Scrap Searched . | . . . . Spaces Dug . | . . . . Terrain Destroyed 102 | . . . 102 Melee . | . . . . Projectile . | . . . . AOE 102 | . . . 102 Terrain Rammed . | . . . . Walls Destroyed . | . . . . Machines Disabled . | . . . . Actions | -11 -10 -9 -9 --------- Run | Yrd Mat Mat Min Total 846 | 80 180 531 55 Wait 70 | 13 2 53 2 Move 638 | 55 150 397 36 Hop . | . . . . Pick Up 18 | 6 4 8 . Fast Attach 16 | 6 1 9 . Attach 6 | . . 4 2 Detach 1 | . . 1 . Swap 10 | . 4 5 1 Drop 14 | . 4 10 . Fire 73 | . 15 44 14 Melee . | . . . . Ram . | . . . . Kick . | . . . . Crush . | . . . . Escape Stasis . | . . . . Rewire . | . . . . Trap . | . . . . Miscellaneous . | . . . . Route ------- -11/Scrapyard -10/Materials -9/Materials (discovered 2 exits: [*Mat] / [*Min]) -9/Mines History --------- Turn | Location | Event 30 | -11/Scrapyard | Discovered new exit (range 14) 78 | -11/Scrapyard | Entered Materials 227 | -10/Materials | Discovered new exit (range 6) 273 | -10/Materials | Entered another Materials area 273 | -9/Materials | Evolved 2 slots: Utility x1, Weapon x1 311 | -9/Materials | Build established: Mutant 484 | -9/Materials | Lost 5 parts (1p2n2w) 551 | -9/Materials | Discovered new exit (range 3) 742 | -9/Materials | Core integrity fell below 50% 871 | -9/Materials | Discovered new exit (range 7) 906 | -9/Materials | Entered Mines 925 | -9/Mines | Assembled infested the area 965 | -9/Mines | Destroyed 11 combat bots 965 | -9/Mines | Core integrity fell below 20% 974 | -9/Mines | Destroyed by D-53 Grenadier with Mini Grenade Launcher Last Messages --------------- 00942_ Destroyed Wheel. 00942_ Destroyed Asb. Hover Unit. 00943_ The unstable cave ceiling collapses. 00944_ as-40704 destroyed. 00944_ as-33912 destroyed. 00948_ The unstable cave ceiling collapses. 00956_ C-30 ARC bursts open, deploying its payload. 00956_ D-53 Grenadier unfolds itself. 00960_ The unstable cave ceiling collapses. 00960_ Wheel destroyed. 00961_ The unstable cave ceiling collapses. 00962_ Med. Laser destroyed. 00964_ The unstable cave ceiling collapses. 00964_ Hrd. Light Armor Plating destroyed. 00966_ Structural Scanner destroyed. 00967_ The unstable cave ceiling collapses. 00970_ Beam Rifle destroyed. 00970_ Imp. Ion Engine destroyed. 00970_ D-53 Grenadier destroyed. 00972_ The unstable cave ceiling collapses. Map ----- +----------------------------------------------------+ | | | | | | | | | | | | | ????????????????#######?########????????? | | ????????????????## ############???????? | | ????????????????## ##### ###???????? | | ????????????????## ## ##???????? | | ???????????????### # ##???????? | | ?????????????##### ## ##???????? | | ????????????##### #### ########## | | ???????????#### ##### ########## | | ???????????### ###### | | ???????????## # #### | | ???????????## ### ###### #### | | ???????????## ### ####### #### | | ???????????## # # ###????????? | | ???????????### ###?????????? | | ???????????### # ###????????? | | ??????????#### ###????????? | | ??????????### d ##????????? | | ??????????## ##????????? | | ??????????## ###????????? | | ??????????## @ ###?????????? | | ??????????## ####??????????? | | ??????????## #### ##????????????? | | ??????????##= #########????????????? | | ??????????##%! ####?????????????????? | | ??????????##### #####??????????????????? | | ??????????##### ####???????????????????? | | ?????????????## ##?????????????????????? | | ?????????????# ##?????????????????????? | | ?????????????? #?????????????????????? | | ?????????????? ???????????????????????? | | ??????????????a